[Event "*** Titled Tuesday Blitz"]
[Site "Chess.com"]
[Date "2020.11.24"]
[Round "6"]
[White "PriSachu"]
[Black "ZverevLev"]
[Result "1-0"]
[WhiteElo "2537"]
[BlackElo "2292"]
[TimeControl "180+1"]
[EndTime "11:23:05 PST"]
[Termination "PriSachu won on time"]

1. e4 {[%clk 0:02:54.3]} 1... e5 {[%clk 0:02:58.6]} 2. Nf3 {[%clk 0:02:54.2]}
2... Nc6 {[%clk 0:02:58]} 3. Bb5 {[%clk 0:02:54.1]} 3... a6 {[%clk 0:02:57.1]}
4. Ba4 {[%clk 0:02:54.2]} 4... Nf6 {[%clk 0:02:56.4]} 5. O-O {[%clk 0:02:54.4]}
5... Be7 {[%clk 0:02:52.9]} 6. Re1 {[%clk 0:02:54.3]} 6... b5 {[%clk 0:02:48.7]}
7. Bb3 {[%clk 0:02:54.8]} 7... d6 {[%clk 0:02:49.1]} 8. c3 {[%clk 0:02:55.1]}
8... O-O {[%clk 0:02:45]} 9. h3 {[%clk 0:02:54.2]} 9... Na5 {[%clk 0:02:43.4]}
10. Bc2 {[%clk 0:02:53.7]} 10... c5 {[%clk 0:02:43.8]} 11. d4 {[%clk 0:02:53.5]}
11... cxd4 {[%clk 0:02:43.7]} 12. cxd4 {[%clk 0:02:53.1]} 12... Bb7 {[%clk
0:02:43.2]} 13. Nc3 {[%clk 0:02:10.8]} 13... Rc8 {[%clk 0:02:38.2]} 14. a3
{[%clk 0:01:57.6]} 14... Nc4 {[%clk 0:02:35.2]} 15. Qe2 {[%clk 0:01:45.8]} 15...
Qc7 {[%clk 0:02:26.5]} 16. Bb3 {[%clk 0:01:40.4]} 16... Nb6 {[%clk 0:02:23]} 17.
Bg5 {[%clk 0:01:36.2]} 17... h6 {[%clk 0:02:18.4]} 18. Bh4 {[%clk 0:01:27.9]}
18... Nbd7 {[%clk 0:02:12.4]} 19. Rad1 {[%clk 0:01:18.5]} 19... Rfe8 {[%clk
0:01:59.2]} 20. Ba2 {[%clk 0:01:15.7]} 20... Nh5 {[%clk 0:01:35.3]} 21. Bxe7
{[%clk 0:01:10.6]} 21... Nf4 {[%clk 0:01:34]} 22. Qe3 {[%clk 0:01:07.2]} 22...
Rxe7 {[%clk 0:01:32.3]} 23. Kh2 {[%clk 0:00:55.7]} 23... Nf6 {[%clk 0:01:17.9]}
24. Nh4 {[%clk 0:00:43.8]} 24... g6 {[%clk 0:00:56.8]} 25. g3 {[%clk 0:00:40.6]}
25... Nxh3 {[%clk 0:00:51.6]} 26. Kxh3 {[%clk 0:00:36.5]} 26... Qd7+ {[%clk
0:00:47.9]} 27. Kg2 {[%clk 0:00:27.9]} 27... exd4 {[%clk 0:00:46.4]} 28. Qxd4
{[%clk 0:00:23.1]} 28... Re5 {[%clk 0:00:34.2]} 29. Qxe5 {[%clk 0:00:18.3]}
29... dxe5 {[%clk 0:00:32.9]} 30. Rxd7 {[%clk 0:00:18.2]} 30... Nxd7 {[%clk
0:00:32.9]} 31. Nf3 {[%clk 0:00:18.5]} 31... Kg7 {[%clk 0:00:31]} 32. Rd1 {[%clk
0:00:18.5]} 32... Rc7 {[%clk 0:00:30.8]} 33. Nd5 {[%clk 0:00:18]} 33... Rc2
{[%clk 0:00:15.5]} 34. Nb4 {[%clk 0:00:14.1]} 34... Rc7 {[%clk 0:00:12.7]} 35.
Bd5 {[%clk 0:00:14.1]} 35... Bxd5 {[%clk 0:00:11.3]} 36. Rxd5 {[%clk 0:00:13.5]}
36... Nb6 {[%clk 0:00:08.2]} 37. Rxe5 {[%clk 0:00:12.3]} 37... Nc4 {[%clk
0:00:06.6]} 38. Rd5 {[%clk 0:00:09.4]} 38... Nxb2 {[%clk 0:00:05.1]} 39. Nxa6
{[%clk 0:00:09.4]} 39... Ra7 {[%clk 0:00:04.7]} 40. Nb4 {[%clk 0:00:09]} 40...
Rxa3 {[%clk 0:00:04.1]} 41. Rxb5 {[%clk 0:00:09]} 41... Nd1 {[%clk 0:00:03.2]}
42. Nd3 {[%clk 0:00:08.4]} 42... Rxd3 {[%clk 0:00:00.6]} 43. Rb7 {[%clk
0:00:06.4]} 1-0

[Event "*** Titled Tuesday Blitz"]
[Site "Chess.com"]
[Date "2020.11.24"]
[Round "6"]
[White "Ladislav1969"]
[Black "TST2014"]
[Result "0-1"]
[WhiteElo "2338"]
[BlackElo "2504"]
[TimeControl "180+1"]
[EndTime "11:23:07 PST"]
[Termination "TST2014 won by resignation"]

1. e4 {[%clk 0:03:00.9]} 1... c5 {[%clk 0:02:57.6]} 2. d4 {[%clk 0:03:00.2]}
2... cxd4 {[%clk 0:02:57.4]} 3. c3 {[%clk 0:03:01.1]} 3... Nf6 {[%clk
0:02:57.4]} 4. e5 {[%clk 0:03:00.7]} 4... Nd5 {[%clk 0:02:57.5]} 5. Nf3 {[%clk
0:03:01.4]} 5... Nc6 {[%clk 0:02:56]} 6. Bc4 {[%clk 0:03:01.2]} 6... Nb6 {[%clk
0:02:55.5]} 7. Bb3 {[%clk 0:03:01.4]} 7... d5 {[%clk 0:02:55.1]} 8. exd6 {[%clk
0:03:01.7]} 8... Qxd6 {[%clk 0:02:54.6]} 9. O-O {[%clk 0:03:02.3]} 9... Be6
{[%clk 0:02:54.6]} 10. Bxe6 {[%clk 0:03:00.2]} 10... Qxe6 {[%clk 0:02:54.3]} 11.
Nxd4 {[%clk 0:03:00.8]} 11... Nxd4 {[%clk 0:02:51.9]} 12. Qxd4 {[%clk
0:03:00.7]} 12... Qd5 {[%clk 0:02:49]} 13. Be3 {[%clk 0:02:53.8]} 13... e6
{[%clk 0:02:46.2]} 14. Nd2 {[%clk 0:02:45.8]} 14... Qxd4 {[%clk 0:02:39.6]} 15.
Bxd4 {[%clk 0:02:45.2]} 15... f6 {[%clk 0:02:23.6]} 16. Be3 {[%clk 0:02:24]}
16... Nd5 {[%clk 0:02:20.3]} 17. Bd4 {[%clk 0:02:15.1]} 17... e5 {[%clk
0:02:18.7]} 18. Rfe1 {[%clk 0:02:15.1]} 18... O-O-O {[%clk 0:02:14.6]} 19. Bxa7
{[%clk 0:02:04.3]} 19... b6 {[%clk 0:02:14.7]} 20. Nc4 {[%clk 0:01:48.2]} 20...
Kb7 {[%clk 0:02:12.7]} 21. Rad1 {[%clk 0:01:39.1]} 21... Bc5 {[%clk 0:01:55]}
22. b4 {[%clk 0:01:33.1]} 22... Be7 {[%clk 0:01:54.3]} 23. Rxd5 {[%clk
0:01:26.8]} 23... Rxd5 {[%clk 0:01:51.4]} 24. Bxb6 {[%clk 0:01:26.3]} 24... Rc8
{[%clk 0:01:49.7]} 25. Ne3 {[%clk 0:01:25.3]} 25... Rd3 {[%clk 0:01:41]} 26. Ba5
{[%clk 0:01:16.2]} 26... Rcxc3 {[%clk 0:01:39.1]} 27. a4 {[%clk 0:00:58.4]}
27... Ra3 {[%clk 0:01:37.2]} 28. Rc1 {[%clk 0:00:56.5]} 28... Bd6 {[%clk
0:01:09.4]} 29. Nc4 {[%clk 0:00:53.6]} 29... Rxa4 {[%clk 0:01:08.2]} 30. Nxd6+
{[%clk 0:00:48]} 30... Rxd6 {[%clk 0:01:07.3]} 31. g3 {[%clk 0:00:44.5]} 31...
Rd7 {[%clk 0:01:01.9]} 32. h4 {[%clk 0:00:42.6]} 32... h5 {[%clk 0:01:00.4]} 33.
Kg2 {[%clk 0:00:40.5]} 33... Ra2 {[%clk 0:01:00.1]} 34. Kf3 {[%clk 0:00:31.6]}
34... Rd3+ {[%clk 0:00:58.7]} 35. Ke4 {[%clk 0:00:27.6]} 35... Rd4+ {[%clk
0:00:50]} 36. Ke3 {[%clk 0:00:26.2]} 36... Rdd2 {[%clk 0:00:42.7]} 37. Rc7+
{[%clk 0:00:25]} 37... Ka6 {[%clk 0:00:42.8]} 38. Rxg7 {[%clk 0:00:25.9]} 38...
Re2+ {[%clk 0:00:40.4]} 39. Kd3 {[%clk 0:00:23.4]} 39... Rxf2 {[%clk 0:00:39.6]}
40. Rg6 {[%clk 0:00:21.9]} 40... Kb5 {[%clk 0:00:35.6]} 41. Ke4 {[%clk
0:00:21.4]} 41... Rae2+ {[%clk 0:00:34.8]} 42. Kd5 {[%clk 0:00:21.6]} 42... Rf3
{[%clk 0:00:34.2]} 43. Bd8 {[%clk 0:00:18.3]} 43... f5 {[%clk 0:00:33.7]} 44.
Be7 {[%clk 0:00:17.4]} 44... Rd3+ {[%clk 0:00:33.3]} 45. Ke6 {[%clk 0:00:16.9]}
45... e4 {[%clk 0:00:32.7]} 46. Kxf5 {[%clk 0:00:16]} 46... Rf3+ {[%clk
0:00:32.9]} 47. Ke5 {[%clk 0:00:15.1]} 47... e3 {[%clk 0:00:33.4]} 48. Rg5
{[%clk 0:00:13.9]} 48... Kc4 {[%clk 0:00:32.1]} 49. Ke4 {[%clk 0:00:13.9]} 49...
Ref2 {[%clk 0:00:31.8]} 50. Rc5+ {[%clk 0:00:12.1]} 50... Kb3 {[%clk 0:00:28.3]}
51. b5 {[%clk 0:00:11.5]} 51... e2 {[%clk 0:00:28.6]} 52. Rc1 {[%clk 0:00:11.1]}
52... Rf1 {[%clk 0:00:28.7]} 53. b6 {[%clk 0:00:09.7]} 53... Rxc1 {[%clk
0:00:25.7]} 54. b7 {[%clk 0:00:10.6]} 54... e1=Q+ {[%clk 0:00:25.8]} 55. Kxf3
{[%clk 0:00:10.2]} 55... Qh1+ {[%clk 0:00:24.4]} 0-1

[Event "*** Titled Tuesday Blitz"]
[Site "Chess.com"]
[Date "2020.11.24"]
[Round "6"]
[White "Chigorinetz"]
[Black "ural58"]
[Result "1-0"]
[WhiteElo "2567"]
[BlackElo "2429"]
[TimeControl "180+1"]
[EndTime "11:23:10 PST"]
[Termination "Chigorinetz won on time"]

1. e4 {[%clk 0:03:00.9]} 1... d5 {[%clk 0:02:59.1]} 2. Nc3 {[%clk 0:03:00]} 2...
d4 {[%clk 0:02:58.7]} 3. Nce2 {[%clk 0:02:59.9]} 3... c5 {[%clk 0:02:57.8]} 4.
Ng3 {[%clk 0:02:59.7]} 4... Qa5 {[%clk 0:02:57.4]} 5. a3 {[%clk 0:02:55.7]} 5...
Nc6 {[%clk 0:02:55.4]} 6. Bc4 {[%clk 0:02:55.3]} 6... h5 {[%clk 0:02:46.4]} 7.
Nf3 {[%clk 0:02:50.1]} 7... h4 {[%clk 0:02:42.6]} 8. Ne2 {[%clk 0:02:50.1]} 8...
Bg4 {[%clk 0:02:39]} 9. b4 {[%clk 0:02:44.3]} 9... cxb4 {[%clk 0:02:30.3]} 10.
Bb2 {[%clk 0:02:18.8]} 10... e5 {[%clk 0:02:16.3]} 11. Ng5 {[%clk 0:02:07]}
11... Nh6 {[%clk 0:02:10.8]} 12. f3 {[%clk 0:01:58.7]} 12... Bd7 {[%clk
0:01:58.2]} 13. axb4 {[%clk 0:01:54.2]} 13... Qd8 {[%clk 0:01:38.9]} 14. f4
{[%clk 0:01:51.3]} 14... Bxb4 {[%clk 0:01:32.2]} 15. O-O {[%clk 0:01:45.9]}
15... O-O {[%clk 0:01:30.7]} 16. Qe1 {[%clk 0:01:31.3]} 16... h3 {[%clk
0:01:24.4]} 17. Qh4 {[%clk 0:01:29.5]} 17... Bxd2 {[%clk 0:01:19]} 18. Ba3
{[%clk 0:01:05.6]} 18... hxg2 {[%clk 0:01:15.6]} 19. Kxg2 {[%clk 0:01:03.8]}
19... exf4 {[%clk 0:00:42]} 20. Bxf8 {[%clk 0:01:01]} 20... f3+ {[%clk
0:00:23.2]} 21. Nxf3 {[%clk 0:01:00.5]} 21... Qxh4 {[%clk 0:00:23.4]} 22. Nxh4
{[%clk 0:00:59.1]} 22... Rxf8 {[%clk 0:00:23.9]} 23. Bd5 {[%clk 0:00:52.1]}
23... a6 {[%clk 0:00:20]} 24. Ng3 {[%clk 0:00:39.1]} 24... Bc3 {[%clk
0:00:16.5]} 25. Rab1 {[%clk 0:00:37.7]} 25... b5 {[%clk 0:00:16.6]} 26. Rf3
{[%clk 0:00:37.7]} 26... Ne7 {[%clk 0:00:15.1]} 27. Bb3 {[%clk 0:00:36]} 27...
Be6 {[%clk 0:00:13.9]} 28. Ne2 {[%clk 0:00:33.1]} 28... Bxb3 {[%clk 0:00:12.7]}
29. cxb3 {[%clk 0:00:31.5]} 29... b4 {[%clk 0:00:12.3]} 30. Rd1 {[%clk
0:00:29.4]} 30... Nc6 {[%clk 0:00:12]} 31. Nf5 {[%clk 0:00:25]} 31... Nxf5
{[%clk 0:00:11.5]} 32. Rxf5 {[%clk 0:00:25.9]} 32... Re8 {[%clk 0:00:10.6]} 33.
Rc5 {[%clk 0:00:23.5]} 33... Re6 {[%clk 0:00:08.3]} 34. Kf3 {[%clk 0:00:23.3]}
34... a5 {[%clk 0:00:07.8]} 35. h4 {[%clk 0:00:19.8]} 35... Rf6+ {[%clk
0:00:07.8]} 36. Kg3 {[%clk 0:00:18.3]} 36... Rg6+ {[%clk 0:00:06.7]} 37. Kf2
{[%clk 0:00:17.1]} 37... Rf6+ {[%clk 0:00:06.8]} 38. Kg2 {[%clk 0:00:16.7]}
38... Re6 {[%clk 0:00:06.4]} 39. h5 {[%clk 0:00:14.4]} 39... Kh7 {[%clk
0:00:02.3]} 40. Kf3 {[%clk 0:00:13.8]} 40... Ne5+ {[%clk 0:00:01.8]} 41. Kf4
{[%clk 0:00:12.1]} 41... d3 {[%clk 0:00:02]} 42. Nxc3 {[%clk 0:00:10.8]} 42...
bxc3 {[%clk 0:00:02.3]} 43. Rxc3 {[%clk 0:00:10.5]} 43... f6 {[%clk 0:00:02.6]}
44. Ke3 {[%clk 0:00:10.4]} 44... Rb6 {[%clk 0:00:02.3]} 45. Ra1 {[%clk 0:00:09]}
45... Rb5 {[%clk 0:00:02.3]} 46. Kd2 {[%clk 0:00:08.9]} 46... Kh6 {[%clk
0:00:01.5]} 47. Rg1 {[%clk 0:00:08.2]} 1-0

[Event "*** Titled Tuesday Blitz"]
[Site "Chess.com"]
[Date "2020.11.24"]
[Round "6"]
[White "skoularikii"]
[Black "Vuk2000"]
[Result "0-1"]
[WhiteElo "2473"]
[BlackElo "2729"]
[TimeControl "180+1"]
[EndTime "11:23:10 PST"]
[Termination "Vuk2000 won by resignation"]

1. e4 {[%clk 0:02:51.3]} 1... e6 {[%clk 0:02:59]} 2. d4 {[%clk 0:02:49.4]} 2...
d5 {[%clk 0:02:59]} 3. Nc3 {[%clk 0:02:48.9]} 3... Bb4 {[%clk 0:02:59.1]} 4.
exd5 {[%clk 0:02:49]} 4... exd5 {[%clk 0:02:58.2]} 5. Bd3 {[%clk 0:02:48.9]}
5... Nf6 {[%clk 0:02:55.3]} 6. Ne2 {[%clk 0:02:48.6]} 6... O-O {[%clk
0:02:54.9]} 7. O-O {[%clk 0:02:48.6]} 7... Re8 {[%clk 0:02:51.5]} 8. Bg5 {[%clk
0:02:46]} 8... Nc6 {[%clk 0:02:41.9]} 9. Bxf6 {[%clk 0:02:39.9]} 9... Qxf6
{[%clk 0:02:22]} 10. Nxd5 {[%clk 0:02:39.7]} 10... Qd6 {[%clk 0:02:22.3]} 11.
Nxb4 {[%clk 0:02:34.3]} 11... Qxb4 {[%clk 0:02:21.5]} 12. Rb1 {[%clk 0:02:26.1]}
12... Bg4 {[%clk 0:02:04.6]} 13. c3 {[%clk 0:02:21.5]} 13... Qd6 {[%clk
0:02:02]} 14. Qd2 {[%clk 0:02:17.1]} 14... Rad8 {[%clk 0:01:56.2]} 15. Rfe1
{[%clk 0:02:10]} 15... Ne5 {[%clk 0:01:42.2]} 16. Nf4 {[%clk 0:02:02.5]} 16...
Nxd3 {[%clk 0:01:37]} 17. Nxd3 {[%clk 0:02:01.9]} 17... Be6 {[%clk 0:01:35.7]}
18. b3 {[%clk 0:01:48.6]} 18... c5 {[%clk 0:01:34.4]} 19. Re4 {[%clk 0:01:32.2]}
19... Qb6 {[%clk 0:00:26.2]} 20. Nf4 {[%clk 0:01:10.7]} 20... cxd4 {[%clk
0:00:21.4]} 21. cxd4 {[%clk 0:01:03.7]} 21... Bf5 {[%clk 0:00:18.6]} 22. Rxe8+
{[%clk 0:01:02.7]} 22... Rxe8 {[%clk 0:00:19.5]} 23. Re1 {[%clk 0:01:02.7]}
23... Rd8 {[%clk 0:00:17.7]} 24. d5 {[%clk 0:00:55.5]} 24... h6 {[%clk
0:00:17.6]} 25. Rd1 {[%clk 0:00:41.7]} 25... Qd6 {[%clk 0:00:16.9]} 26. Ne2
{[%clk 0:00:41.4]} 26... Be4 {[%clk 0:00:15.2]} 27. Nc3 {[%clk 0:00:40.7]} 27...
Bg6 {[%clk 0:00:14.2]} 28. Qd4 {[%clk 0:00:39.8]} 28... a6 {[%clk 0:00:13.8]}
29. b4 {[%clk 0:00:37.1]} 29... Bh5 {[%clk 0:00:10.2]} 30. Re1 {[%clk
0:00:32.3]} 30... Bg6 {[%clk 0:00:09.9]} 31. Qc5 {[%clk 0:00:27.5]} 31... Qd7
{[%clk 0:00:08.3]} 32. Qb6 {[%clk 0:00:23.6]} 32... Rc8 {[%clk 0:00:07.7]} 33.
Qd4 {[%clk 0:00:17.4]} 33... Qc7 {[%clk 0:00:07.1]} 34. Re3 {[%clk 0:00:16.4]}
34... Qd6 {[%clk 0:00:05.8]} 35. g3 {[%clk 0:00:16.3]} 35... b5 {[%clk
0:00:05.4]} 36. h3 {[%clk 0:00:15.7]} 36... Rc4 {[%clk 0:00:05.3]} 37. Qd2
{[%clk 0:00:11.1]} 37... Qxb4 {[%clk 0:00:05]} 38. d6 {[%clk 0:00:10.3]} 38...
Rd4 {[%clk 0:00:05.4]} 39. Nd5 {[%clk 0:00:07.2]} 39... Rxd2 {[%clk 0:00:04.5]}
40. Nxb4 {[%clk 0:00:06.9]} 40... Rxd6 {[%clk 0:00:04.9]} 41. Re8+ {[%clk
0:00:07.1]} 41... Kh7 {[%clk 0:00:05.1]} 42. Ra8 {[%clk 0:00:08]} 42... Rd4
{[%clk 0:00:04.2]} 43. Nc6 {[%clk 0:00:06.9]} 43... Ra4 {[%clk 0:00:03.1]} 44.
Ne5 {[%clk 0:00:06.6]} 44... Rxa2 {[%clk 0:00:03.4]} 45. h4 {[%clk 0:00:05.1]}
45... Be4 {[%clk 0:00:03.4]} 46. Rd8 {[%clk 0:00:04.1]} 46... Ra1+ {[%clk
0:00:03.9]} 0-1

[Event "*** Titled Tuesday Blitz"]
[Site "Chess.com"]
[Date "2020.11.24"]
[Round "6"]
[White "rasmussvane"]
[Black "Aygehovit1992"]
[Result "1-0"]
[WhiteElo "2886"]
[BlackElo "2641"]
[TimeControl "180+1"]
[EndTime "11:23:11 PST"]
[Termination "rasmussvane won on time"]

1. Nf3 {[%clk 0:03:00.9]} 1... Nf6 {[%clk 0:02:58.8]} 2. g3 {[%clk 0:03:01]}
2... d5 {[%clk 0:02:55.6]} 3. Bg2 {[%clk 0:03:01.3]} 3... c6 {[%clk 0:02:56.2]}
4. O-O {[%clk 0:03:01.4]} 4... g6 {[%clk 0:02:56.8]} 5. c4 {[%clk 0:03:00.9]}
5... Bg7 {[%clk 0:02:56.9]} 6. b3 {[%clk 0:03:01.3]} 6... O-O {[%clk 0:02:56.8]}
7. Bb2 {[%clk 0:03:01.5]} 7... b6 {[%clk 0:02:54.7]} 8. d4 {[%clk 0:02:45.8]}
8... Bb7 {[%clk 0:02:54]} 9. Nbd2 {[%clk 0:02:45.1]} 9... Nbd7 {[%clk
0:02:47.8]} 10. Qc2 {[%clk 0:02:41.1]} 10... Qb8 {[%clk 0:02:25]} 11. Rad1
{[%clk 0:02:39.2]} 11... c5 {[%clk 0:02:20.6]} 12. dxc5 {[%clk 0:02:38.5]} 12...
Nxc5 {[%clk 0:02:19.8]} 13. cxd5 {[%clk 0:02:29.6]} 13... Bxd5 {[%clk
0:02:16.4]} 14. Rfe1 {[%clk 0:01:14.4]} 14... Qb7 {[%clk 0:02:14.2]} 15. Bd4
{[%clk 0:01:08.4]} 15... Rac8 {[%clk 0:01:51.7]} 16. Qb2 {[%clk 0:01:08.4]}
16... Nce4 {[%clk 0:01:51.3]} 17. Nxe4 {[%clk 0:01:04.5]} 17... Bxe4 {[%clk
0:01:52.2]} 18. Rc1 {[%clk 0:01:02.1]} 18... Qd5 {[%clk 0:01:43]} 19. Red1
{[%clk 0:00:54.7]} 19... Rxc1 {[%clk 0:01:41.4]} 20. Rxc1 {[%clk 0:00:53]} 20...
Rd8 {[%clk 0:01:38.5]} 21. Be5 {[%clk 0:00:46.2]} 21... Bh6 {[%clk 0:01:24.6]}
22. Rf1 {[%clk 0:00:37.9]} 22... Ng4 {[%clk 0:01:04.9]} 23. Bc3 {[%clk
0:00:36.1]} 23... Nxf2 {[%clk 0:01:03.8]} 24. Kxf2 {[%clk 0:00:25.9]} 24... f6
{[%clk 0:00:37.3]} 25. Kg1 {[%clk 0:00:23.7]} 25... Be3+ {[%clk 0:00:37.5]} 26.
Kh1 {[%clk 0:00:24.1]} 26... g5 {[%clk 0:00:38]} 27. Ne1 {[%clk 0:00:16.8]}
27... Bxg2+ {[%clk 0:00:16]} 28. Nxg2 {[%clk 0:00:17.7]} 28... Bc5 {[%clk
0:00:09.4]} 29. Qc2 {[%clk 0:00:16.9]} 29... Kg7 {[%clk 0:00:05.8]} 30. e4
{[%clk 0:00:17.1]} 30... Qd3 {[%clk 0:00:05.3]} 31. Qxd3 {[%clk 0:00:14.4]}
31... Rxd3 {[%clk 0:00:06.2]} 32. Be1 {[%clk 0:00:11.5]} 32... Rd1 {[%clk
0:00:05.3]} 33. h3 {[%clk 0:00:05.5]} 33... Ra1 {[%clk 0:00:05.3]} 34. a4 {[%clk
0:00:05.3]} 34... Rb1 {[%clk 0:00:05.2]} 35. Kh2 {[%clk 0:00:04.6]} 35... Rxb3
{[%clk 0:00:05.3]} 36. Bf2 {[%clk 0:00:04.8]} 36... Bd6 {[%clk 0:00:05.1]} 37.
Rd1 {[%clk 0:00:03.7]} 37... Ra3 {[%clk 0:00:04.5]} 38. Ne3 {[%clk 0:00:03.7]}
38... Kf7 {[%clk 0:00:02.1]} 39. Nf5 {[%clk 0:00:03.7]} 39... Be5 {[%clk
0:00:02.6]} 40. Rd7 {[%clk 0:00:03.6]} 40... Ra2 {[%clk 0:00:02.3]} 41. Rxe7+
{[%clk 0:00:03.9]} 41... Kf8 {[%clk 0:00:02.4]} 42. Kg1 {[%clk 0:00:04.2]} 42...
Rxa4 {[%clk 0:00:03]} 43. Rb7 {[%clk 0:00:04.3]} 43... Ra2 {[%clk 0:00:02]} 44.
g4 {[%clk 0:00:04]} 44... h6 {[%clk 0:00:01.8]} 45. Nxh6 {[%clk 0:00:04.2]}
45... Rb2 {[%clk 0:00:02.2]} 46. Nf5 {[%clk 0:00:04.6]} 46... b5 {[%clk
0:00:01.3]} 47. Bc5+ {[%clk 0:00:04.5]} 1-0

[Event "*** Titled Tuesday Blitz"]
[Site "Chess.com"]
[Date "2020.11.24"]
[Round "6"]
[White "yobdc"]
[Black "hermionegrangermagic"]
[Result "1-0"]
[WhiteElo "2479"]
[BlackElo "2579"]
[TimeControl "180+1"]
[EndTime "11:23:14 PST"]
[Termination "yobdc won by resignation"]

1. d4 {[%clk 0:03:00.9]} 1... d5 {[%clk 0:02:59.5]} 2. Nf3 {[%clk 0:02:59.3]}
2... Nf6 {[%clk 0:02:58.7]} 3. e3 {[%clk 0:02:57.8]} 3... c6 {[%clk 0:02:58.1]}
4. Bd3 {[%clk 0:02:57.4]} 4... g6 {[%clk 0:02:55.6]} 5. b3 {[%clk 0:02:51.5]}
5... Bg7 {[%clk 0:02:56]} 6. Bb2 {[%clk 0:02:52]} 6... O-O {[%clk 0:02:56.5]} 7.
Nbd2 {[%clk 0:02:52.3]} 7... Bf5 {[%clk 0:02:55.9]} 8. Ne5 {[%clk 0:02:51.4]}
8... Nbd7 {[%clk 0:02:55.1]} 9. f4 {[%clk 0:02:50.9]} 9... Bxd3 {[%clk
0:02:53.6]} 10. cxd3 {[%clk 0:02:51.8]} 10... e6 {[%clk 0:02:48.6]} 11. O-O
{[%clk 0:02:51.3]} 11... c5 {[%clk 0:02:41.2]} 12. Ndf3 {[%clk 0:02:48.8]} 12...
Qb6 {[%clk 0:02:39.3]} 13. dxc5 {[%clk 0:02:32.2]} 13... Nxc5 {[%clk 0:02:35.3]}
14. Bd4 {[%clk 0:02:31]} 14... Qd6 {[%clk 0:02:27.2]} 15. Qd2 {[%clk 0:02:23.4]}
15... b6 {[%clk 0:02:04.5]} 16. Rac1 {[%clk 0:02:21.1]} 16... Rac8 {[%clk
0:02:03.5]} 17. Rc2 {[%clk 0:02:20.4]} 17... Nfd7 {[%clk 0:01:48.9]} 18. Rfc1
{[%clk 0:02:17.9]} 18... a5 {[%clk 0:01:39.7]} 19. Nxd7 {[%clk 0:02:03.2]} 19...
Qxd7 {[%clk 0:01:31.4]} 20. Bxc5 {[%clk 0:01:46.9]} 20... Rxc5 {[%clk 0:01:31]}
21. Rxc5 {[%clk 0:01:47.8]} 21... bxc5 {[%clk 0:01:31.2]} 22. Rxc5 {[%clk
0:01:48.7]} 22... a4 {[%clk 0:01:31.1]} 23. d4 {[%clk 0:01:47.4]} 23... axb3
{[%clk 0:01:27.8]} 24. axb3 {[%clk 0:01:48.3]} 24... Rb8 {[%clk 0:01:26.4]} 25.
Qc2 {[%clk 0:01:40.8]} 25... Qb7 {[%clk 0:01:06.5]} 26. Rc3 {[%clk 0:01:40.3]}
26... Qb4 {[%clk 0:01:02.6]} 27. h3 {[%clk 0:01:40.4]} 27... Bf8 {[%clk
0:00:58.5]} 28. Kh2 {[%clk 0:01:39.9]} 28... Ra8 {[%clk 0:00:57.5]} 29. Ne5
{[%clk 0:01:35.8]} 29... Bd6 {[%clk 0:00:46]} 30. Nc6 {[%clk 0:01:23.9]} 30...
Qb5 {[%clk 0:00:38.5]} 31. Qd3 {[%clk 0:01:17.1]} 31... Qb6 {[%clk 0:00:24.8]}
32. Ne5 {[%clk 0:01:14.7]} 32... Bxe5 {[%clk 0:00:24.2]} 33. fxe5 {[%clk
0:01:15.6]} 33... Ra2 {[%clk 0:00:23.8]} 34. Rc8+ {[%clk 0:00:47.6]} 34... Kg7
{[%clk 0:00:23.5]} 35. Qf1 {[%clk 0:00:48.3]} 35... f5 {[%clk 0:00:23.7]} 36.
exf6+ {[%clk 0:00:47.2]} 36... Kf7 {[%clk 0:00:24]} 37. Qf4 {[%clk 0:00:47.1]}
37... Ra7 {[%clk 0:00:23]} 38. Rh8 {[%clk 0:00:36.9]} 38... h5 {[%clk
0:00:06.3]} 39. h4 {[%clk 0:00:21.1]} 39... Qa6 {[%clk 0:00:03.3]} 40. Rh7+
{[%clk 0:00:17.1]} 40... Kg8 {[%clk 0:00:03.6]} 41. f7+ {[%clk 0:00:16.3]} 41...
Kxh7 {[%clk 0:00:04]} 42. f8=Q {[%clk 0:00:16.6]} 42... Rg7 {[%clk 0:00:03.8]}
43. Q4f6 {[%clk 0:00:12.4]} 43... Qb7 {[%clk 0:00:04]} 44. Q6xg7+ {[%clk
0:00:11.5]} 44... Qxg7 {[%clk 0:00:04.1]} 45. Qxg7+ {[%clk 0:00:12]} 45... Kxg7
{[%clk 0:00:05]} 46. Kg3 {[%clk 0:00:12.6]} 46... Kf6 {[%clk 0:00:05]} 47. Kf4
{[%clk 0:00:13.1]} 47... Ke7 {[%clk 0:00:05.3]} 48. b4 {[%clk 0:00:13.3]} 48...
Kd6 {[%clk 0:00:05.6]} 49. Kg5 {[%clk 0:00:13.2]} 49... Kc6 {[%clk 0:00:06]} 50.
Kxg6 {[%clk 0:00:10.9]} 50... Kb5 {[%clk 0:00:06.3]} 51. Kxh5 {[%clk 0:00:11.3]}
51... Kxb4 {[%clk 0:00:06.7]} 52. Kg5 {[%clk 0:00:11.5]} 52... Kc3 {[%clk
0:00:07.1]} 53. h5 {[%clk 0:00:11.7]} 53... Kd3 {[%clk 0:00:07.5]} 54. Kf4
{[%clk 0:00:12.1]} 54... Ke2 {[%clk 0:00:05.9]} 55. h6 {[%clk 0:00:12.1]} 55...
Kf2 {[%clk 0:00:06.5]} 56. g4 {[%clk 0:00:12.4]} 56... Kg2 {[%clk 0:00:07.4]}
57. h7 {[%clk 0:00:12.7]} 1-0